{"text_format":"1","workbook":"xlsx","n_sheets":2,"sheets":["CONTAS NO CARTÃO NUBANK","SOMA"],"not_rendered":{"charts":0,"images":0,"macros":0,"external_links":2,"defined_names":4,"comments":1,"pivot_tables":0},"unopened":[],"bounds":{"document_bytes":16777216,"sheet_cells":100000,"rows_first":2000,"rows_last":500,"rows_between":2000,"halvings":0,"cell_chars":16384,"cell_head_chars":4096},"cells_cut":0,"cells_raw":0,"read":"whole","date_system":"1900"}

{"sheet":"CONTAS NO CARTÃO NUBANK","index":0,"n_rows":63,"n_cols":36,"rows_kept":63,"cut":false,"hidden":false,"merged":[[58,2,58,3],[59,2,59,3],[60,2,60,3],[61,2,61,3],[62,2,62,3],[51,1,51,4],[51,7,51,9],[52,7,52,9],[53,7,53,9],[54,7,54,9],[57,2,57,3],[46,34,46,35],[47,4,47,5],[47,10,47,11],[47,16,47,17],[47,22,47,23],[47,28,47,29],[47,34,47,35],[22,19,22,23],[22,24,39,24],[22,25,22,29],[22,30,39,30],[22,31,22,35],[46,4,46,5],[46,10,46,11],[46,16,46,17],[46,22,46,23],[46,28,46,29],[22,1,22,5],[22,6,39,6],[22,7,22,11],[22,12,39,12],[22,13,22,17],[22,18,39,18],[20,4,20,5],[20,10,20,11],[20,16,20,17],[20,22,20,23],[20,28,20,29],[20,34,20,35],[19,4,19,5],[19,10,19,11],[19,16,19,17],[19,22,19,23],[19,28,19,29],[19,34,19,35],[0,0,2,36],[4,1,4,5],[4,7,4,11],[4,13,4,17],[4,19,4,23],[4,25,4,29],[4,31,4,35]]}
["MINHAS CONTAS NUBANK - VENCIMENTO TODO DIA 16"]
[]
[]
[]
[null,"JANEIRO",null,null,null,null,null,"FEVEREIRO",null,null,null,null,null,"MARÇO",null,null,null,null,null,"ABRIL",null,null,null,null,null,"MAIO",null,null,null,null,null,"JUNHO"]
[null,"VENDEDOR ","DESCRIÇÃO","RESPONSÁVEL","PARCELA","VALOR",null,"VENDEDOR ","DESCRIÇÃO","RESPONSÁVEL","PARCELA","VALOR",null,"VENDEDOR ","DESCRIÇÃO","RESPONSÁVEL","PARCELA","VALOR",null,"VENDEDOR ","DESCRIÇÃO","RESPONSÁVEL","PARCELA","VALOR",null,"VENDEDOR ","DESCRIÇÃO","RESPONSÁVEL","PARCELA","VALOR",null,"VENDEDOR ","DESCRIÇÃO","RESPONSÁVEL","PARCELA","VALOR"]
[null,"ELECTROLUX","LAVA-LOUÇAS","RICARDO","12/12",{"$f":"207.43/2","v":103.715},null,null,null,null,null,null,null,null,null,null,null,null,null,null,null,null,null,null,null,"CORRE DE RUA","TENIS NIKE","RICARDO","5/5",99.19,null,"ELECTROLUX","LAVA-LOUÇAS","RICARDO","5/12",{"$f":"207.43/2","v":103.715}]
[null,"ELECTROLUX","LAVA-LOUÇAS","FRAN","12/12",{"$f":"F7","v":103.715},null,null,null,null,null,null,null,null,null,null,null,null,null,null,null,null,null,null,null,"HBOMAX","ASSINATURA","RICARDO","-",13.95,null,"ELECTROLUX","LAVA-LOUÇAS","FRAN","5/12",{"$f":"AJ7","v":103.715}]
[null,null,null,null,null,null,null,null,null,null,null,null,null,null,null,null,null,null,null,null,null,null,null,null,null,"ALIEXPRESS","FECHADURA","RICARDO","10/10",{"$f":"80.89-34","v":46.89},null,"SHOPEE","PULSEIRAS","RICARDO","3/3",{"$f":"20.5/2","v":10.25}]
[null,null,null,null,null,null,null,null,null,null,null,null,null,null,null,null,null,null,null,null,null,null,null,null,null,"ALIEXPRESS","FECHADURA","FRAN",{"$f":"AC9","v":"10/10"},{"$f":"80.89-46.89","v":34},null,"SHOPEE","PULSEIRAS","FRAN","3/3",{"$f":"AJ9","v":10.25}]
[null,null,null,null,null,null,null,null,null,null,null,null,null,null,null,null,null,null,null,null,null,null,null,null,null,"ELECTROLUX","LAVA-LOUÇAS","RICARDO","4/12",{"$f":"207.43/2","v":103.715},null,"SHOPEE","PULSEIRAS","RICARDO","3/3",{"$f":"22.67/2","v":11.335000000000001}]
[null,null,null,null,null,null,null,null,null,null,null,null,null,null,null,null,null,null,null,null,null,null,null,null,null,"ELECTROLUX","LAVA-LOUÇAS","FRAN","4/12",{"$f":"AD11","v":103.715},null,"SHOPEE","PULSEIRAS","FRAN","3/3",{"$f":"AJ11","v":11.335000000000001}]
[null,null,null,null,null,null,null,null,null,null,null,null,null,null,null,null,null,null,null,null,null,null,null,null,null,"SHOPEE","PULSEIRAS","RICARDO","2/3",{"$f":"20.5/2","v":10.25},null,"SHOPEE","PULSEIRAS","RICARDO","3/3",{"$f":"20.5/2","v":10.25}]
[null,null,null,null,null,null,null,null,null,null,null,null,null,null,null,null,null,null,null,null,null,null,null,null,null,"SHOPEE","PULSEIRAS","FRAN","2/3",{"$f":"AD13","v":10.25},null,"SHOPEE","PULSEIRAS","FRAN","3/3",{"$f":"AJ13","v":10.25}]
[null,null,null,null,null,null,null,null,null,null,null,null,null,null,null,null,null,null,null,null,null,null,null,null,null,"SHOPEE","PULSEIRAS","RICARDO","2/3",{"$f":"22.67/2","v":11.335000000000001}]
[null,null,null,null,null,null,null,null,null,null,null,null,null,null,null,null,null,null,null,null,null,null,null,null,null,"SHOPEE","PULSEIRAS","FRAN","2/3",{"$f":"AD15","v":11.335000000000001}]
[null,null,null,null,null,null,null,null,null,null,null,null,null,null,null,null,null,null,null,null,null,null,null,null,null,"SHOPEE","PULSEIRAS","RICARDO","2/3",{"$f":"20.5/2","v":10.25}]
[null,null,null,null,null,null,null,null,null,null,null,null,null,null,null,null,null,null,null,null,null,null,null,null,null,"SHOPEE","PULSEIRAS","FRAN","2/3",{"$f":"AD17","v":10.25}]
[]
[null,null,null,"TOTAL FRAN",{"$f":"SUMIF(D6:D19,\"FRAN\",F6:F19)","v":103.715},null,null,null,null,null,null,null,null,null,null,null,null,null,null,null,null,null,null,null,null,null,null,"TOTAL FRAN",{"$f":"SUMIF(AB6:AB19,\"FRAN\",AD6:AD19)","v":169.55},null,null,null,null,"TOTAL FRAN",{"$f":"SUMIF(AH6:AH19,\"FRAN\",AJ6:AJ19)","v":135.55000000000001}]
[null,"TOTAL CARTÃO",{"$f":"SUM(F7:F20)","v":207.43},"TOTAL RICARDO",{"$f":"SUMIF(D7:D20,\"ricardo\",F7:F20)","v":103.715},null,null,"TOTAL CARTÃO",{"$f":"SUM(L7:L20)","v":0},"TOTAL RICARDO",{"$f":"SUMIF(J7:J20,\"ricardo\",L7:L20)","v":0},null,null,"TOTAL CARTÃO",{"$f":"SUM(R7:R20)","v":0},"TOTAL RICARDO",{"$f":"SUMIF(P7:P20,\"ricardo\",R7:R20)","v":0},null,null,"TOTAL CARTÃO",{"$f":"SUM(X7:X20)","v":0},"TOTAL RICARDO",{"$f":"SUMIF(V7:V20,\"ricardo\",X7:X20)","v":0},null,null,"TOTAL CARTÃO",{"$f":"SUM(AD7:AD20)","v":465.13},"TOTAL RICARDO",{"$f":"SUMIF(AB7:AB20,\"ricardo\",AD7:AD20)","v":295.58},null,null,"TOTAL CARTÃO",{"$f":"SUM(AJ7:AJ20)","v":271.10000000000002},"TOTAL RICARDO",{"$f":"SUMIF(AH7:AH20,\"ricardo\",AJ7:AJ20)","v":135.55000000000001}]
[]
[null,"JULHO",null,null,null,null,null,"AGOSTO",null,null,null,null,null,"SETEMBRO",null,null,null,null,null,"OUTUBRO",null,null,null,null,null,"NOVEMBRO",null,null,null,null,null,"DEZEMBRO"]
[null,"VENDEDOR ","DESCRIÇÃO","RESPONSÁVEL","PARCELA","VALOR",null,"VENDEDOR ","DESCRIÇÃO","RESPONSÁVEL","PARCELA","VALOR",null,"VENDEDOR ","DESCRIÇÃO","RESPONSÁVEL","PARCELA","VALOR",null,"VENDEDOR ","DESCRIÇÃO","RESPONSÁVEL","PARCELA","VALOR",null,"VENDEDOR ","DESCRIÇÃO","RESPONSÁVEL","PARCELA","VALOR",null,"VENDEDOR ","DESCRIÇÃO","RESPONSÁVEL","PARCELA","VALOR"]
[null,"ELECTROLUX","LAVA-LOUÇAS","RICARDO","6/12",{"$f":"207.43/2","v":103.715},null,"ELECTROLUX","LAVA-LOUÇAS","RICARDO","7/12",{"$f":"207.43/2","v":103.715},null,"ELECTROLUX","LAVA-LOUÇAS","RICARDO","8/12",{"$f":"207.43/2","v":103.715},null,"ELECTROLUX","LAVA-LOUÇAS","RICARDO","9/12",{"$f":"207.43/2","v":103.715},null,"ELECTROLUX","LAVA-LOUÇAS","RICARDO","10/12",{"$f":"207.43/2","v":103.715},null,"ELECTROLUX","LAVA-LOUÇAS","RICARDO","11/12",{"$f":"207.43/2","v":103.715}]
[null,"ELECTROLUX","LAVA-LOUÇAS","FRAN","6/12",{"$f":"F25","v":103.715},null,"ELECTROLUX","LAVA-LOUÇAS","FRAN","7/12",{"$f":"L25","v":103.715},null,"ELECTROLUX","LAVA-LOUÇAS","FRAN","8/12",{"$f":"R25","v":103.715},null,"ELECTROLUX","LAVA-LOUÇAS","FRAN","9/12",{"$f":"X25","v":103.715},null,"ELECTROLUX","LAVA-LOUÇAS","FRAN","10/12",{"$f":"AD25","v":103.715},null,"ELECTROLUX","LAVA-LOUÇAS","FRAN","11/12",{"$f":"AJ25","v":103.715}]
[]
[]
[]
[]
[]
[]
[]
[]
[]
[]
[]
[]
[]
[]
[]
[]
[]
[]
[]
[]
[null,null,null,"TOTAL FRAN",{"$f":"SUMIF(D24:D46,\"FRAN\",F24:F46)","v":103.715},null,null,null,null,"TOTAL FRAN",{"$f":"SUMIF(J24:J46,\"FRAN\",L24:L46)","v":103.715},null,null,null,null,"TOTAL FRAN",{"$f":"SUMIF(P24:P46,\"FRAN\",R24:R46)","v":103.715},null,null,null,null,"TOTAL FRAN",{"$f":"SUMIF(V24:V46,\"FRAN\",X24:X46)","v":103.715},null,null,null,null,"TOTAL FRAN",{"$f":"SUMIF(AB24:AB46,\"FRAN\",AD24:AD46)","v":103.715},null,null,null,null,"TOTAL FRAN",{"$f":"SUMIF(AH24:AH46,\"FRAN\",AJ24:AJ46)","v":103.715}]
[null,"TOTAL CARTÃO",{"$f":"SUM(F25:F47)","v":207.43},"TOTAL RICARDO",{"$f":"SUMIF(D25:D47,\"ricardo\",F25:F47)","v":103.715},null,null,"TOTAL CARTÃO",{"$f":"SUM(L25:L47)","v":207.43},"TOTAL RICARDO",{"$f":"SUMIF(J25:J47,\"ricardo\",L25:L47)","v":103.715},null,null,"TOTAL CARTÃO",{"$f":"SUM(R25:R47)","v":207.43},"TOTAL RICARDO",{"$f":"SUMIF(P25:P47,\"ricardo\",R25:R47)","v":103.715},null,null,"TOTAL CARTÃO",{"$f":"SUM(X25:X47)","v":207.43},"TOTAL RICARDO",{"$f":"SUMIF(V25:V47,\"ricardo\",X25:X47)","v":103.715},null,null,"TOTAL CARTÃO",{"$f":"SUM(AD25:AD47)","v":207.43},"TOTAL RICARDO",{"$f":"SUMIF(AB25:AB47,\"ricardo\",AD25:AD47)","v":103.715},null,null,"TOTAL CARTÃO",{"$f":"SUM(AJ25:AJ47)","v":207.43},"TOTAL RICARDO",{"$f":"SUMIF(AH25:AH47,\"ricardo\",AJ25:AJ47)","v":103.715}]
[]
[]
[]
[null,"Menck",null,null,null,null,null,"Psico"]
[null,"Amarela Rio","Azul","Amarela onça","Preta",null,null,"Amarela onça"]
[null,"T. MENCK","T. MENCK","T. MENCK","T. MENCK",null,null,"THIAGO"]
[null,94,8,8,10,null,null,7]
[null,120,120,120,120,null,null,"Á vista",120,"NOK"]
[null,"6x","6x","6x","6x"]
[null,"1º",80,null,"NOK"]
[null,"2º",80,null,"NOK"]
[null,"3º",80,null,"NOK"]
[null,"4º",80,null,"NOK"]
[null,"5º",80,null,"NOK"]
[null,"6º",80,null,"NOK"]

{"sheet":"SOMA","index":1,"n_rows":26,"n_cols":16,"rows_kept":26,"cut":false,"hidden":false,"merged":[[23,1,23,2],[24,1,24,2],[25,1,25,2],[16,10,16,11],[16,6,16,9],[16,0,16,4],[19,1,19,2],[19,7,19,8],[19,10,19,11],[20,1,20,2],[21,1,21,2],[22,1,22,2],[17,1,17,2],[17,7,17,8],[17,10,17,11],[18,1,18,2],[18,7,18,8],[18,10,18,11],[4,0,4,1],[4,3,4,4],[4,6,4,7],[4,9,4,10],[4,12,4,13]]}
[]
[]
[]
[]
["RICARDO",null,null,"FRAN",null,null,"PAI",null,null,"MÃE",null,null,"JÉSSICA"]
[]
[]
["TOTAL NU",{"$f":"'[1]CONTAS NO CARTÃO NUBANK'!AC45","v":295.58},null,"TOTAL NU",{"$f":"'[1]CONTAS NO CARTÃO NUBANK'!AC44","v":169.55}]
[null,null,null,"LUZ",{"$f":"E18","v":75}]
[null,null,null,"INTERNET",{"$f":"E22","v":46.86}]
[null,null,null,"ÁGUA",{"$f":"E25","v":30.605}]
[]
[]
["TOTAL",{"$f":"SUM(B6:B13)","v":295.58},null,"TOTAL",{"$f":"SUM(E6:E13)","v":322.01500000000004}]
[]
[]
["CONTAS MENSAIS",null,null,null,null,null,null,null,null,null,null,null,null,null,"DIA 30",{"$f":"K17-H18","v":0}]
["Dia 03","Conta de Luz",null,"Débito Aut.",{"$f":"H22/2","v":75},null,null,null,null,null,null,null,null,null,"INSS",811.04]
["Dia 12","Fatura Visa",null,"Pagar",{"$f":"B6","v":0},null,null,null,null,null,null,null,null,null,"IRPF",842.16]
["Dia 16","Fatura Nubank",null,"Saldo p/ Déb.",{"$f":"B8","v":295.58},null,null,null,null,null,null,null,null,null,"Odonto",16.64]
["Dia 17","Fatura Black",null,"Débito Aut.",{"$f":"B7","v":0},null,null,null,null,null,null,null,null,null,"Cesta Básica",62.5]
["Dia 20","Internet Casa",null,"Débito Aut.",{"$f":"H24/2","v":46.86},null,"Luz",150,null,null,null,null,null,null,"Life Safe",{"$f":"K17*24*0.0001665","v":0}]
["Dia 20","Internet Mãe",null,"Pagar",84,null,"Água",61.21,null,null,null,null,null,null,"Outros",0]
["Dia 26","Fatura Vivo",null,"Débito Aut.",60,null,"Internet",93.72]
["Dia 27","Conta de Água",null,"Débito Aut.",{"$f":"H23/2","v":30.605}]
["Dia 30","Fundacred",null,"Pagar",{"$f":"'[1]base de dados'!M23","v":981.5}]